Cogmind - Beta 10.2 @@@ ROGUE MODE // 2022.02.02 @ 18:10:14 Player: magnificent.frigatebird Result: Destroyed by G-47 Trooper with Particle Gun Performance ------------- Evolutions (2) 1000 Regions Visited (4) 800 Robots Destroyed (32) 160 Value Destroyed (970) 970 Prototype IDs (1) 20 Alien Tech Used (0) 0 Bonus (0) 0 TOTAL SCORE: 2950 Bonus ------- None Cogmind --------- Core Integrity 0/550 Matter 300/300 Energy 100/100 System Corruption 5% Temperature Cool (9) Movement Core (100) Ox1 Location -8/Materials Parts ------- > --- POWER (1) -------- (None) > --- PROPULSION (4) --- (None) > --- UTILITY (3) ------ Small Storage Unit > --- WEAPON (3) ------- (None) > --- INVENTORY (6) ---- Light Ion Engine Peak State ------------ > --- POWER ------------ Light Nuclear Core > --- PROPULSION ------- Light Treads Aluminum Leg Aluminum Leg Carbon-fiber Leg > --- UTILITY ---------- Improved Sensor Array Signal Interpreter Propulsion Shielding > --- WEAPON ----------- Particle Gun Electrolaser Ion Cannon > --- INVENTORY -------- Light Ion Engine Improved Ion Engine Small Storage Unit Compact Matter Pod [Rating: 21] Favorites ----------- Power Light Nuclear Core Engine Improved Ion Engine Power Core Light Nuclear Core Propulsion Aluminum Leg Treads Light Treads Leg Aluminum Leg Hover Unit Hover Unit Utility Small Storage Unit Device Improved Sensor Array Storage Small Storage Unit Processor Signal Interpreter Protection Core Shielding Weapon EM Shotgun Energy Gun EM Shotgun Energy Cannon Beam Cannon Ballistic Gun Light Assault Rifle Ballistic Cannon Light Cannon Build | -11 -10 -9 -9 -8 ------- Run | Scr Mat Mat Min Mat Slots Evolved 4 | . . 2 . 2 Power . | . . . . . Propulsion 2 | . . 2 . . Utility 1 | . . . . 1 Weapon 1 | . . . . 1 Parts Attached 44 | 6 13 4 1 20 Power 6 | 1 1 1 . 3 Engine 4 | 1 1 . . 2 Core 2 | . . 1 . 1 Reactor . | . . . . . Propulsion 13 | 2 5 2 . 4 Treads 1 | . . . . 1 Leg 11 | 2 5 1 . 3 Wheel . | . . . . . Hover 1 | . . 1 . . Flight . | . . . . . Utility 8 | 1 2 . . 5 Device 2 | . 1 . . 1 Storage 3 | 1 . . . 2 Processor 1 | . . . . 1 Hackware . | . . . . . Protection 2 | . 1 . . 1 Artifact . | . . . . . Weapon 17 | 2 5 1 1 8 Energy Gun 12 | 1 3 . 1 7 Energy Cannon 2 | . 1 . . 1 Ballistic Gun 2 | 1 . 1 . . Ballistic Cannon 1 | . 1 . . . Launcher . | . . . . . Special Weapon . | . . . . . Impact Weapon . | . . . . . Slashing Weapon . | . . . . . Piercing Weapon . | . . . . . Special Melee Weapon . | . . . . . Unidentified Prototypes 1 | . . . . 1 Parts Lost 31 | . 3 3 7 18 Power 3 | . . . 1 2 Propulsion 8 | . . 2 2 4 Utility 5 | . . . 1 4 Weapon 15 | . 3 1 3 8 Highest Loss Streak 11 | . 1 1 7 11 Average Slot Usage (%) 79 | . 91 86 34 60 Engine 6 | . 14 . . 1 Core 3 | . . 11 3 3 Treads 1 | . . . . 5 Leg 20 | . 24 27 3 12 Hover 1 | . . 7 1 . Device 4 | . 7 . . 5 Storage 10 | . 14 11 11 2 Processor 2 | . . . . 8 Protection 6 | . 4 11 5 5 Energy Gun 10 | . 14 6 . 10 Energy Cannon 4 | . 7 . . 4 Ballistic Gun 2 | . 3 1 3 . Ballistic Cannon 2 | . . 11 5 . Naked Turns . | . . . . . Heaviest Build 19 | 10 18 15 5 19 Greatest Support 35 | 10 20 30 3 35 Greatest Overweight (x) 2 | 2 1 2 1 2 Average Overweight (x) . | . . 1 1 . Largest Inventory Capacity 6 | 6 6 6 6 6 Average Capacity 5 | 5 6 6 6 4 Most Carried 6 | 4 6 6 6 5 Average Carried 4 | 2 5 4 6 3 Final Capacity 6 | 6 6 6 6 6 Final Carried 6 | 3 5 6 6 1 Class Distribution -------------------- 79% | Mutant 14% | Scavenger-Mutant 5% | Scavenger-Skirmisher Dominant Class ---------------- Mutant | -10/Materials Scavenger-Mutant | -9/Materials Mutant | -9/Mines Mutant | -8/Materials Resources | -11 -10 -9 -9 -8 ----------- Run | Scr Mat Mat Min Mat Matter Collected 882 | 263 184 140 17 278 Remotely . | . . . . . Salvage Created 1257 | 91 589 184 37 356 Parts 68 | 2 27 20 3 16 Haulers Intercepted . | . . . . . Recyclers Shooed 3 | 1 1 . 1 . Parts Field Recycled . | . . . . . Retrieved Matter . | . . . . . Parts Self-Destructed . | . . . . . Prevented . | . . . . . Kills | -11 -10 -9 -9 -8 ------- Run | Scr Mat Mat Min Mat Combat Hostiles Destroyed 23 | . 11 5 1 6 Guns 9 | . 6 . . 3 Cannons 10 | . 3 5 1 1 AOE 3 | . 1 . . 2 Classes Destroyed 7 | 1 2 3 . 1 Worker 3 | . . 1 . 2 Builder 1 | . . . . 1 Recycler 2 | 1 1 . . . Watcher 3 | . 1 2 . . Swarmer 2 | . . 2 . . Grunt 20 | . 11 2 1 6 Sentry 1 | . . 1 . . Best Kill Streak 6 | 1 6 4 1 4 Combat Bots Only 3 | . 3 2 1 3 Max Kills in Single Turn 3 | 1 1 1 1 3 Gunslinging . | . . . . . Exploded 2 | . 1 . . 2 Melee . | . . . . . Uniques/NPCs Destroyed . | . . . . . Combat | -11 -10 -9 -9 -8 -------- Run | Scr Mat Mat Min Mat Damage Taken 3395 | . 695 279 686 1735 Core 1055 | . 130 23 338 564 Absorbed by Shields . | . . . . . Core Remaining (%) 52 | 100 48 . 9 . Volleys Fired 121 | 3 56 26 10 26 Largest 3 | 2 2 2 2 3 Hottest 188 | 60 105 75 55 188 Shots Fired 199 | 6 91 35 16 51 Gun 118 | 6 59 9 7 37 Cannon 81 | . 32 26 9 14 Launcher . | . . . . . Special . | . . . . . Kinetic 57 | 3 13 26 15 . Thermal 83 | . 35 . 1 47 Explosive . | . . . . . Electromagnetic 59 | 3 43 9 . 4 Robot Hit Streak 14 | 2 14 5 4 7 Robot Miss Streak 9 | 2 5 9 2 2 Penetration Max . | . . . . . Secondary Targets . | . . . . . Shots Hit Robots 123 | 2 65 15 11 30 Core Hits 53 | 2 24 8 3 16 Critical Hits . | . . . . . Critical Kills . | . . . . . Critical Parts Destroyed . | . . . . . Melee Attacks . | . . . . . Impact . | . . . . . Slashing . | . . . . . Piercing . | . . . . . Sneak Attacks . | . . . . . Combat Hostiles . | . . . . . Follow-up Attacks . | . . . . . Damage Inflicted 1901 | 37 734 220 172 738 Guns 969 | 37 471 34 45 382 Cannons 632 | . 211 186 122 113 Explosions 284 | . 52 . . 232 Melee . | . . . . . Ramming 16 | . . . 5 11 Kinetic 372 | 10 20 186 156 . Thermal 978 | . 284 . 11 683 Explosive . | . . . . . Electromagnetic 535 | 27 430 34 . 44 Impact . | . . . . . Slashing . | . . . . . Piercing . | . . . . . Highest Corruption 5 | . 2 . . 5 Average Corruption 3 | . 2 . . 4 Corruption Purged . | . . . . . Effects 5 | . . . . 5 Message Errors 1 | . . . . 1 Matter Fused 1 | . . . . 1 Heat Flow Errors 1 | . . . . 1 Energy Discharges 1 | . . . . 1 Misfires 1 | . . . . 1 Overload Shots . | . . . . . Overflow Damage 11 | . . . . 11 Projectiles . | . . . . . Explosions 11 | . . . . 11 Melee . | . . . . . Knockbacks 3 | . . . 3 . Impact . | . . . . . Kinetic 3 | . . . 3 . Secondary . | . . . . . Self-Inflicted Damage 74 | . . . 2 72 Shots 1 | . . . . 1 Rammed 4 | . . . 1 3 Targets Rammed 7 | . . . 1 6 Kicked 3 | . . . . 3 Crushed . | . . . . . Highest Temperature 615 | 20 385 75 68 615 Average Temperature 154 | 12 161 24 38 200 Received Heat Transfer 1407 | . 387 63 192 765 Effects 16 | . 7 . . 9 Shutdowns 3 | . 2 . . 1 Energy Bleed 5 | . 2 . . 3 Interference 3 | . 2 . . 1 Matter Decay 2 | . 1 . . 1 Short Circuit 1 | . . . . 1 Damage (minor) 1 | . . . . 1 Damage (core) 1 | . . . . 1 Siege Activations . | . . . . . Robots Corrupted 1 | . 1 . . . Combat Hostiles 1 | . 1 . . . Parts Fried 1 | . 1 . . . Impact Corruptions . | . . . . . Robots Melted . | . . . . . Combat Hostiles . | . . . . . Parts Melted . | . . . . . Heat Transferred 1594 | . 494 . 25 1075 Parts Sabotaged . | . . . . . Parts Stolen . | . . . . . Parts Stripped . | . . . . . Power Chain Reactions 2 | . 1 . . 1 Missiles Intercepted . | . . . . . Alert | -11 -10 -9 -9 -8 ------- Run | Scr Mat Mat Min Mat Peak Influence 200 | 5 200 182 95 165 Initial 70 | . 3 38 70 13 Average 73 | . 62 112 54 77 Maximum Alert Level 1 | . 1 . . . Low Security (%) 99 | 100 98 100 100 100 Level 1 . | . 1 . . . Level 2 . | . . . . . Level 3 . | . . . . . Level 4 . | . . . . . Level 5 . | . . . . . High Security . | . . . . . Max Security . | . . . . . Squads Dispatched 4 | . 3 . . 1 Investigation . | . . . . . Extermination . | . . . . . Reinforcement 4 | . 3 . . 1 Assault . | . . . . . Garrison . | . . . . . Intercept . | . . . . . Construction Impeded . | . . . . . Haulers Reinforced . | . . . . . Stealth | -11 -10 -9 -9 -8 --------- Run | Scr Mat Mat Min Mat Distress Signals 3 | . 3 . . . Communications Jammed . | . . . . . Distress Signals . | . . . . . Times Spotted 53 | . 21 9 9 14 Peak Tracking Total 7 | . 5 4 7 7 Tactical Retreats 2 | . 1 1 . . Traps | -11 -10 -9 -9 -8 ------- Run | Scr Mat Mat Min Mat Traps Triggered 5 | . 1 . . 4 Indirectly . | . . . . . Trap Hack Attempts . | . . . . . Triggered . | . . . . . Disarmed . | . . . . . Reprogrammed . | . . . . . Reused . | . . . . . Traps Extracted . | . . . . . Installed . | . . . . . Triggered . | . . . . . Machines | -11 -10 -9 -9 -8 ---------- Run | Scr Mat Mat Min Mat Machines Disabled 5 | . . 1 . 4 Max in Single Turn 2 | . . 1 . 2 Machines Sabotaged . | . . . . . Garrisons Compromised . | . . . . . Overloaded Fab Kills . | . . . . . Fab Network Shutdowns . | . . . . . Hacking | -11 -10 -9 -9 -8 --------- Run | Scr Mat Mat Min Mat Machines Accessed 1 | . 1 . . . Terminals 1 | . 1 . . . Fabricators . | . . . . . Repair Stations . | . . . . . Recycling Units . | . . . . . Scanalyzers . | . . . . . Garrison Access . | . . . . . Total Hacks 2 | . 2 . . . Successful 2 | . 2 . . . Failed . | . . . . . Catastrophic . | . . . . . Database Lockouts . | . . . . . Manual . | . . . . . Terminals 2 | . 2 . . . Fabricators . | . . . . . Repair Stations . | . . . . . Recycling Units . | . . . . . Scanalyzers . | . . . . . Garrison Access . | . . . . . Terminal Hacks 2 | . 2 . . . Record 2 | . 2 . . . Fabricator Hacks . | . . . . . Repair Station Hacks . | . . . . . Recycling Unit Hacks . | . . . . . Scanalyzer . | . . . . . Garrison Access Hacks . | . . . . . Unauthorized Hacks . | . . . . . Terminals . | . . . . . Fabricators . | . . . . . Repair Stations . | . . . . . Recycling Units . | . . . . . Scanalyzers . | . . . . . Garrison Access . | . . . . . Data Cores Recovered . | . . . . . Used . | . . . . . Hacking Detections 1 | . 1 . . . Full Trace Events . | . . . . . Feedback Events . | . . . . . Feedback Blocked . | . . . . . Robot Schematics Acquired . | . . . . . Robots Built . | . . . . . Matter . | . . . . . Time . | . . . . . Total Robot Build Rating . | . . . . . Part Schematics Acquired . | . . . . . Parts Built . | . . . . . Matter . | . . . . . Time . | . . . . . Total Part Build Rating . | . . . . . Parts Repaired . | . . . . . Time . | . . . . . Parts Recycled . | . . . . . Recycled Matter . | . . . . . Retrieved Matter . | . . . . . Retrieved Components . | . . . . . Parts Scanalyzed . | . . . . . Part Schematics Acquired . | . . . . . Parts Damaged . | . . . . . Bothacking | -11 -10 -9 -9 -8 ------------ Run | Scr Mat Mat Min Mat Used RIF Installer . | . . . . . Robots Hacked . | . . . . . Non-combat . | . . . . . Combat . | . . . . . Robot Hacks Applied . | . . . . . Relay Couplers Released . | . . . . . Robots Rewired . | . . . . . Allies Hacked . | . . . . . Hacks Repelled . | . . . . . Allies | -11 -10 -9 -9 -8 -------- Run | Scr Mat Mat Min Mat Total Allies . | . . . . . Largest Group . | . . . . . Highest-Rated Group . | . . . . . Highest-Rated Ally . | . . . . . Total Orders . | . . . . . Ally Attacks . | . . . . . Total Damage . | . . . . . Kills . | . . . . . Allies Corrupted . | . . . . . Allies Melted . | . . . . . Intel | -11 -10 -9 -9 -8 ------- Run | Scr Mat Mat Min Mat Robot Analysis Total . | . . . . . Derelict Logs Recovered . | . . . . . Drone Launches . | . . . . . Drone Recoveries . | . . . . . Exploration | -11 -10 -9 -9 -8 ------------- Run | Scr Mat Mat Min Mat Turns Passed 1406 | 77 595 295 61 378 Spaces Moved 712 | 52 312 136 34 178 Core 144 | 20 . . 34 90 Treads 11 | . . . . 11 Legs 481 | 32 312 60 . 77 Wheels . | . . . . . Hover 76 | . . 76 . . Flight . | . . . . . Fastest Speed 50 | 50 120 120 100 50 Average Speed 127 | 100 124 165 100 116 Slowest Speed 210 | 150 150 210 100 160 Overloaded Moves . | . . . . . Propulsion Burnouts . | . . . . . Robots Hopped . | . . . . . Cave-ins Triggered . | . . . . . Exploration Rate (%) 17 | 4 41 15 10 15 Regions Visited 4 Branch Regions 1 Pre-discovered Areas . | . . . . . Known Exits Taken . | . . . . . Unknown Exits Taken 4 | 1 1 1 1 . Scrap Searched . | . . . . . Spaces Dug . | . . . . . Terrain Destroyed 53 | . 3 . . 50 Melee . | . . . . . Projectile 2 | . . . . 2 AOE 51 | . 3 . . 48 Terrain Rammed . | . . . . . Walls Destroyed . | . . . . . Machines Disabled . | . . . . . Actions | -11 -10 -9 -9 -8 --------- Run | Scr Mat Mat Min Mat Total 1014 | 70 432 171 45 296 Wait 95 | 2 30 2 . 61 Move 708 | 51 311 135 33 178 Hop . | . . . . . Pick Up 30 | 8 13 4 . 5 Fast Attach 10 | . 1 . 1 8 Attach 23 | 5 5 3 . 10 Detach 1 | . 1 . . . Swap 11 | 1 7 1 . 2 Drop 8 | . 8 . . . Fire 121 | 3 56 26 10 26 Melee . | . . . . . Ram 1 | . . . 1 . Kick 6 | . . . . 6 Crush . | . . . . . Escape Stasis . | . . . . . Rewire . | . . . . . Trap . | . . . . . Miscellaneous . | . . . . . Route ------- -11/Scrapyard -10/Materials -9/Materials -9/Mines -8/Materials History --------- Turn | Location | Event 9 | -11/Scrapyard | Discovered new exit (range 16) 78 | -11/Scrapyard | Entered Materials 315 | -10/Materials | Build established: Mutant 614 | -10/Materials | Discovered new exit (range 15) 630 | -10/Materials | Core integrity fell below 50% 673 | -10/Materials | Entered another Materials area 673 | -9/Materials | Evolved 2 slots: Propulsion x2 948 | -9/Materials | Discovered new exit (range 9) 968 | -9/Materials | Entered Mines 997 | -9/Mines | Core integrity fell below 50% 1008 | -9/Mines | Core integrity fell below 20% 1025 | -9/Mines | Discovered new exit (range 5) 1029 | -9/Mines | Lost 7 parts (1p2n1u3w) 1029 | -9/Mines | Entered Materials 1029 | -8/Materials | Evolved 2 slots: Utility x1, Weapon x1 1333 | -8/Materials | Lost 11 parts (1p4n2u4w) 1346 | -8/Materials | Core integrity fell below 50% 1374 | -8/Materials | Core integrity fell below 20% 1407 | -8/Materials | Destroyed by G-47 Trooper with Particle Gun Last Messages --------------- Hvy. Laser destroyed. K-01 Serf collects debris. System corrupted: Heat flow error (+278). K-01 Serf collects debris. Imp. Ion Engine destroyed. K-01 Serf collects debris. Adv. Beam Rifle destroyed. Acquired 24 matter. Acquired Particle Gun. Particle Gun destroyed. Com. Matter Pod destroyed. K-01 Serf collects debris. U-05 Engineer builds a Wall. K-01 Serf collects debris. %W&BLR7UCSYV P&ZQ4IQOLT>LD4IF0Q|98 8X K-01 Serf collects debris. U-05 Engineer builds a Wall. K-01 Serf collects debris. System corrupted: Matter fused (-5). Signal Interpreter destroyed. Map ----- +----------------------------------------------------+ | | | ###########??????????????????????????????????????? | | # ##?????????????????????????????????????? | | ###???????????????????????????????????? | | #???????????????????????????????????? | | #???????????????????????????????????? | | #???????????????????????????????????? | | ##??????????????????????????????????? | | #??????????????????????????????????? | | # ##????????????#+#???????????????????? | | ## #????????????? ???????????????????? | | #????????????? ???????????????????? | | ! #????????????? ???????????????????? | | %%" *% ###????????????? ???????????????????? | | %"" + ?????????? ???????????????????? | | """ # ?????????# #???????????????????? | | #?? ?????????# #???????????????????? | | +?????????????# #???????????????????? | | ######/##### #?????????????# #???????????????????? | | #?# #?????????????# #???????????????????? | | #?# ############### #???????????????????? | | #?# l k#???????????????????? | | !![#?# ############ #???????????????????? | | "" !! #?# #??????????# #???????????????????? | | S"" !![#?# #??????????# #???????????????????? | | "" ### #??????????#@ #???????????????????? | | ## #??????????# #???????????????????? | | ############ #??????????# #???????????????????? | | ???????????# #??????????# ####???????????????????? | | ???????????? ???????????#g#??????????????????????? | | ????????????#???????????# #??????????????????????? | | ????????????????????????# #??????????????????????? | | ????????????????????????# #??????????????????????? | | ???????????????????????? ??????????????????????? | | ???????????????????????? k ??????????????????????? | | ???????????????????????? ] ??????????????????????? | | ???????????????????????? ??????????????????????? | | ????????????????????????a ??????????????????????? | | ???????????????????????? k??????????????????????? | | ???????????????????????? ??????????????????????? | | ???????????????????????? ??????????????????????? | | ?????????????????????????????????????????????????? | | ?????????????????????????????????????????????????? | | ?????????????????????????????????????????????????? | | ?????????????????????????????????????????????????? | | ?????????????????????????????????????????????????? | | ?????????????????????????????????????????????????? | | ?????????????????????????????????????????????????? | | ?????????????????????????????????????????????????? | | ?????????????????????????????????????????????????? | +----------------------------------------------------+ Best States ------------- Heat Dissipation 31 Energy Generation 14 Energy Capacity 265 Matter Stores 450 Matter Capacity 450 Sight Range 16 Robot Scan Range 13 Terrain Scan Density 10 Core Shielding 20 Propulsion Shielding 33 Evasion (%) 50 Recoil Reduction 1 Item Schematics ----------------- None Robot Schematics ------------------ None Fabricated ------------ Nothing Alien Tech Used ----------------- None Achievements -------------- Close Call Crack Shot Power Corrupts Challenges ------------ None Game ------ Seed ReflectiveAerolevNetwork Manual? 0 Play Time 00:25:26 Cumulative 2.9 hours Start 2022.02.02 @ 17:38:23 End 2022.02.02 @ 18:10:14 Sessions 1 Manual Loads 0 Difficulty Rogue Special Mode None Game No. 4 Rogue 4 Adventurer 0 Explorer 0 Win Type - Total 0 Types 0/0/0/0/0/0/0/0/0 Lore% 12 Gallery% 7 Achievement% 6 Wizard Run 0 Options --------- ASCII 1 Keyboard 1 Movement Numpad Keybinds 0 Fullscreen 1 Font 24/Proggy Map View 113x50 Tactical HUD 0 Map Filters NONE Filters NONE Steam 1 RUN: 0c2d5f54-4737-4959-94a8-36378087d402